bitfinex-derivatives/quotes_ETHF0:USTF0_20250327
["timestamp","ask_amount","ask_price","bid_price","bid_amount"]
[1743037277814,2.38992,2019.1,2019.0,0.99791325]
[1743037278510,2.38992,2019.1,2019.0,0.00744325]
[1743037278821,2.38992,2019.1,2019.0,0.99791325]
[1743037279017,2.38992,2019.1,2019.0,0.00744325]
[1743037282613,1.3995,2019.1,2019.0,2.35861325]
[1743037282819,2.40789,2019.2,2019.1,0.99042]
[1743037283018,2.40789,2019.2,2019.1,2.35112]
[1743037283212,4.85885,2019.3,2019.2,0.99037]
[1743037283413,6.25775,2019.3,2019.2,2.40137]
[1743037283618,6.25775,2019.3,2019.2,1.411]
[1743037283828,6.25775,2019.3,2019.2,2.40137]
[1743037285615,5.2674,2019.3,2019.2,2.40137]
[1743037285816,5.2674,2019.3,2019.2,5.60917]
[1743037285817,2.0596,2019.3,2019.2,5.60917]
[1743037286120,1.69881,2019.4,2019.3,0.99032]
[1743037286121,2.38921,2019.4,2019.3,0.99032]
[1743037286421,2.38921,2019.4,2019.3,2.40132]
[1743037288125,2.38921,2019.4,2019.3,1.411]
[1743037288617,2.38921,2019.4,2019.3,2.40132]
[1743037290919,2.38921,2019.4,2019.3,1.411]
[1743037291115,2.38921,2019.4,2019.3,2.40132]
[1743037292028,2.38921,2019.4,2019.3,3.08542]
[1743037294419,2.38917,2019.4,2019.3,3.08542]
[1743037297226,0.99770325,2019.5,2019.4,0.99027]
[1743037297426,2.31040325,2019.5,2019.4,3.02927]
[1743037297622,1.32014325,2019.5,2019.4,3.02927]
[1743037297822,0.00744325,2019.5,2019.4,3.02927]
[1743037302432,0.99015,2019.7,2019.6,0.99017]
[1743037302924,2.33285,2019.7,2019.6,0.99017]
[1743037303124,2.99825,2019.7,2019.6,2.37537]
[1743037303730,2.99825,2019.7,2019.6,1.3852]
[1743037304829,2.47544,2019.6,2019.3,0.99028]
[1743037305030,0.99032,2019.3,2019.2,3.2078]
[1743037305230,0.99037,2019.2,2019.1,6.97842]
[1743037306227,0.99037,2019.2,2019.1,8.32022]
[1743037308537,0.6769,2019.5,2019.2,2.47582]
[1743037308738,0.99028,2019.4,2019.3,2.30607]
[1743037309137,2.33648,2019.4,2019.3,2.30607]
[1743037309538,0.99028,2019.4,2019.3,2.30607]
[1743037310042,1.70473,2019.7,2019.6,0.99017]
[1743037310244,6.24931,2019.8,2019.7,0.99012]
[1743037310541,0.6888,2020.0,2019.9,0.99002]
[1743037310738,1.67882,2020.0,2019.9,0.99002]
[1743037311139,0.99002,2019.9,2019.8,2.37223]
[1743037311340,2.32602,2019.9,2019.8,2.37223]
[1743037311739,2.32602,2019.9,2019.8,43.17223]
[1743037312537,2.32602,2019.9,2019.8,42.1822]
[1743037312747,2.32602,2019.9,2019.8,43.17227]
[1743037314747,2.32602,2019.9,2019.8,42.1822]
[1743037315048,2.32602,2019.9,2019.8,43.17227]
[1743037315647,2.32602,2019.9,2019.8,2.37227]
[1743037316346,2.32602,2019.9,2019.8,3.03317]
[1743037320045,9.5737,2020.2,2019.9,0.98998]
[1743037320349,2.37853,2020.1,2020.0,1.2977]
[1743037321251,0.99002,2019.9,2019.8,1.65094]
[1743037321552,0.99002,2019.9,2019.8,2.94864]
[1743037322150,2.37861,2020.0,2019.9,0.99002]
[1743037322352,2.37861,2020.0,2019.9,2.28772]
[1743037325251,1.3886,2020.0,2019.9,2.28772]
[1743037325643,2.37091,2020.2,2020.1,0.98993]
[1743037325843,0.7052,2020.2,2020.1,0.98993]
[1743037326053,1.69508,2020.2,2020.1,0.98993]
[1743037326247,0.7052,2020.2,2020.1,0.98993]
[1743037326549,1.69508,2020.2,2020.1,1.65433]
[1743037326951,0.7052,2020.2,2020.1,2.98013]
[1743037327144,1.69508,2020.2,2020.1,2.98013]
[1743037327345,3.07658,2020.2,2020.1,2.98013]
[1743037328249,4.94837,2020.7,2020.3,2.47451]
[1743037328449,2.37129,2020.4,2020.3,4.19763]
[1743037328655,2.37129,2020.4,2020.3,0.99725464]
[1743037330155,2.37129,2020.4,2020.3,0.00742464]
[1743037330456,2.37129,2020.4,2020.3,0.99725464]
[1743037332951,5.57909,2020.4,2020.3,0.00742464]
[1743037335162,0.98998,2020.0,2019.9,1.67188]
[1743037335561,0.98998,2020.0,2019.9,0.6819]
[1743037335760,0.99002,2019.9,2019.8,0.99002]
[1743037336462,0.99007,2019.8,2019.7,50.98588]
[1743037337862,0.99007,2019.8,2019.7,50.98592]
[1743037340456,1.70157,2019.8,2019.7,50.98592]
[1743037340658,1.70157,2019.8,2019.7,49.9958]
[1743037340856,1.70157,2019.8,2019.7,44.99792]
[1743037341059,1.70157,2019.8,2019.7,46.30562]
[1743037343859,3.13587,2019.8,2019.7,46.30562]
[1743037345467,2.42437,2019.8,2019.7,46.30562]
[1743037346371,1.4343,2019.8,2019.7,46.30562]
[1743037346569,2.37033262,2020.1,2019.7,47.7908]
[1743037346765,0.00736262,2020.1,2020.0,0.98998]
[1743037347071,0.99729262,2020.1,2020.0,0.98998]
[1743037347277,0.99729262,2020.1,2020.0,2.33468]
[1743037348866,0.99729262,2020.1,2020.0,1.3447]
[1743037349071,0.99729262,2020.1,2020.0,2.33468]
[1743037349375,0.99729262,2020.1,2020.0,1.3447]
[1743037349571,0.99729262,2020.1,2020.0,2.33468]
[1743037349771,0.99729262,2020.1,2020.0,1.3447]
[1743037350669,0.99729262,2020.1,2020.0,2.33468]
[1743037351775,0.00736262,2020.1,2020.0,2.33468]
[1743037351972,0.99729262,2020.1,2020.0,2.33468]
[1743037352678,0.00736262,2020.1,2020.0,2.33468]
[1743037352876,0.99729262,2020.1,2020.0,2.33468]
[1743037353078,0.00736262,2020.1,2020.0,2.33468]
[1743037353377,0.99729262,2020.1,2020.0,2.33468]
[1743037354278,0.00736262,2020.1,2020.0,5.54248]
[1743037354576,0.98984,2020.3,2020.2,0.98982]
[1743037354978,0.98984,2020.3,2020.2,3.09862]
[1743037355277,0.98984,2020.3,2020.2,2.1088]
[1743037355776,0.98984,2020.3,2020.2,3.09868]
[1743037358879,2.33902,2020.4,2020.3,0.98983]
[1743037359081,2.33902,2020.4,2020.3,2.30863]
[1743037359279,2.33902,2020.4,2020.3,1.3188]
[1743037359675,0.98983,2020.3,2020.2,1.4136]
[1743037359875,3.01793,2020.3,2020.2,1.4136]
[1743037360080,2.33853,2020.3,2020.2,2.40348]
[1743037360787,2.33853,2020.3,2020.2,1.4136]
[1743037360989,2.33853,2020.3,2020.2,2.40348]
[1743037362778,4.21694128,2020.5,2020.3,0.9898]
[1743037362980,2.73232128,2020.5,2020.4,1.3713]
[1743037363186,1.66913,2020.5,2020.4,1.3713]
[1743037363776,1.06319128,2020.6,2020.4,1.3713]
[1743037364087,3.2078,2021.1,2021.0,0.98949]
[1743037364285,2.47348,2021.2,2020.8,3.2078]
[1743037364473,1.4337,2021.0,2020.5,4.5791]
[1743037364789,0.98962,2020.8,2020.7,0.98961]
[1743037364979,0.98962,2020.8,2020.7,2.36091]
[1743037365183,0.44255832,2021.9,2020.7,2.36091]
[1743037365386,3.2078,2022.1,2020.8,3.545]
[1743037365684,8.15265,2022.1,2021.4,3.2078]
[1743037365984,0.98924,2021.5,2021.4,3.2078]
[1743037366283,4.94583,2021.7,2021.5,0.98922]
[1743037366284,0.98924,2021.6,2021.5,0.98922]
[1743037366479,0.9891,2021.9,2021.8,0.98906]
[1743037366676,0.98909,2021.8,2021.7,4.1969]
[1743037366980,0.98909,2021.8,2021.7,4.6343]
[1743037367179,3.2078,2022.4,2021.7,4.6343]
[1743037367378,0.98909,2021.8,2021.7,4.6343]
[1743037367579,2.47226,2022.2,2021.7,4.6343]
[1743037367778,1.3959,2022.1,2021.7,4.6343]
[1743037367981,0.98909,2021.8,2021.7,4.6343]
[1743037368588,0.98909,2021.8,2021.7,3.2078]
[1743037369087,2.96969,2021.8,2021.7,3.2078]
[1743037370084,2.47213,2022.3,2021.8,2.47274]
[1743037370383,0.989,2022.0,2021.9,1.3966]
[1743037370579,0.98904,2021.9,2021.8,3.2078]
[1743037370778,2.31584,2021.9,2021.8,3.2078]
[1743037372188,0.98914,2021.7,2021.6,1.4328]
[1743037372487,0.98914,2021.7,2021.6,2.42199]
[1743037373285,2.99648,2021.9,2021.8,0.98909]
[1743037373488,2.31588,2021.9,2021.8,0.98909]
[1743037373678,0.6888,2022.2,2022.0,0.98897]
[1743037373882,0.6888,2022.2,2022.1,4.19675]
[1743037374078,1.6777,2022.2,2022.1,4.19675]
[1743037374288,0.6888,2022.2,2022.1,4.19675]
[1743037374486,1.3976,2022.3,2022.2,0.9889]
[1743037374789,4.19654,2022.6,2022.5,0.98875]
[1743037374985,0.98876,2022.5,2022.4,0.98876]
[1743037375187,0.98872,2022.6,2022.5,0.98872]
[1743037375795,0.98872,2022.6,2022.5,1.4138]
[1743037376194,0.98875,2022.5,2022.4,3.2078]
[1743037376795,0.9888,2022.4,2022.3,0.00742464]
[1743037376993,2.3893,2022.4,2022.3,0.00742464]
[1743037378296,2.3893,2022.4,2022.3,0.99627464]
[1743037378594,6.34462,2022.9,2022.6,0.98869]
[1743037378595,2.4714,2022.9,2022.6,0.98869]
[1743037378793,0.98863,2022.8,2022.7,2.31584]
[1743037379094,0.98863,2022.8,2022.7,1.3272]
[1743037379293,0.9886,2022.8,2022.7,1.3272]
[1743037380397,2.3799,2022.8,2022.7,1.3272]
[1743037380793,2.3799,2022.8,2022.6,3.2078]
[1743037380794,0.98865,2022.7,2022.6,3.2078]
[1743037380991,2.40175,2022.7,2022.6,3.2078]
[1743037381798,0.98864,2022.8,2022.6,3.2078]
[1743037382003,2.40174,2022.8,2022.7,2.31302]
[1743037382392,4.94242,2023.1,2022.7,42.1244]
[1743037382602,0.9886,2022.8,2022.7,43.11304]
[1743037382902,0.9886,2022.8,2022.7,42.1244]
[1743037383198,0.9886,2022.8,2022.7,2.31305]
[1743037383596,0.9886,2022.8,2022.7,1.3244]
[1743037384195,0.9886,2022.8,2022.7,2.31305]
[1743037384400,2.3094,2022.8,2022.7,1.3244]
[1743037385000,0.98865,2022.7,2022.6,3.2078]
[1743037385201,2.30945,2022.7,2022.6,3.2078]
[1743037385694,2.30945,2022.7,2022.6,4.1965]
[1743037385892,0.98862,2022.8,2022.7,0.9886]
[1743037386088,0.98862,2022.8,2022.7,2.3792]
[1743037386293,2.9888,2022.9,2022.8,0.9886]
[1743037386502,2.3094,2022.9,2022.8,0.9886]
[1743037386801,0.9886,2022.9,2022.8,1.6849]
[1743037386999,0.98854,2023.0,2022.9,0.98852]
[1743037387203,3.0227,2023.1,2023.0,0.98851]
[1743037387502,0.9885,2023.1,2023.0,0.98851]
[1743037387704,0.9885,2023.1,2023.0,2.40691]
[1743037388603,0.98844,2023.2,2023.1,0.98842]
[1743037389492,0.98846,2023.1,2023.0,1.4184]
[1743037389694,0.98851,2023.0,2022.9,3.2078]
[1743037389892,2.37551,2023.0,2022.9,3.2078]
[1743037390097,2.37551,2023.0,2022.9,4.6153]
[1743037390599,3.07841,2023.0,2022.9,4.6153]
[1743037391505,3.07841,2023.0,2022.9,5.60386]
[1743037391907,0.9885,2023.1,2023.0,0.98847]
[1743037392105,1.6788,2023.3,2023.2,0.98841]
[1743037392403,3.0658,2023.3,2023.2,4.19621]
[1743037392701,3.0658,2023.3,2023.2,3.2078]
[1743037392902,0.9884,2023.3,2023.2,4.19621]
[1743037393093,2.30955,2023.4,2023.3,0.98836]
[1743037393301,2.30955,2023.4,2023.3,2.0748]
[1743037393909,2.30955,2023.4,2023.3,1.4145]
[1743037395200,2.30955,2023.4,2023.3,2.40286]
[1743037396006,0.98825,2023.6,2023.5,0.98823]
[1743037396305,0.98825,2023.6,2023.5,4.19603]
[1743037396809,0.98825,2023.6,2023.5,3.2078]
[1743037397301,0.98825,2023.6,2023.5,4.19606]
[1743037397511,6.32893,2023.9,2023.8,0.98807]
[1743037397512,0.9881,2023.9,2023.8,0.98807]
[1743037398010,2.47005,2024.0,2023.6,2.1402]
[1743037398303,0.98812,2023.8,2023.7,2.42537]
[1743037398703,1.02722521,2023.8,2023.7,43.22537]
[1743037399207,0.03910521,2023.8,2023.7,43.22537]
[1743037400103,0.98806,2024.0,2023.9,0.91596437]
[1743037400309,0.98806,2024.0,2023.9,4.12376437]
[1743037400509,0.98806,2024.0,2023.9,3.2078]
[1743037400706,0.98806,2024.0,2023.9,4.19587]
[1743037401608,1.3859,2024.2,2023.9,5.67787]
[1743037401821,2.37387,2024.2,2024.1,0.98797]
[1743037402110,1.67731,2024.3,2024.2,0.98792]
[1743037402298,1.67731,2024.3,2024.2,3.2078]
[1743037402811,3.08241,2024.3,2024.2,3.2078]
[1743037404214,0.98807,2024.0,2023.9,4.19584]
[1743037404408,0.98807,2024.0,2023.9,5.49734]
[1743037405909,1.02094159,2024.0,2023.9,5.49734]
[1743037406314,0.6574,2024.4,2023.9,5.49734]
[1743037406315,3.38421815,2025.6,2023.9,12.9973]
[1743037406608,0.98778,2024.6,2024.5,0.98775]
[1743037406807,0.98777,2024.6,2024.5,0.98775]
[1743037407004,0.03287188,2024.6,2024.4,1.3671]
[1743037407214,0.03287188,2024.6,2024.5,4.19557]
[1743037407608,1.02060188,2024.6,2024.5,4.19557]
[1743037408109,0.03287188,2024.6,2024.5,4.19557]
[1743037408314,1.02060188,2024.6,2024.5,4.19557]
[1743037408511,1.02060188,2024.6,2024.5,3.2078]
[1743037408918,1.02060188,2024.6,2024.5,5.58237]
[1743037409119,2.37380188,2024.6,2024.5,5.58237]
[1743037409515,2.37380188,2024.6,2024.5,4.5946]
[1743037409906,2.37380188,2024.6,2024.5,5.58237]
[1743037410105,2.37380188,2024.6,2024.5,4.5946]
[1743037410619,2.37380188,2024.6,2024.5,5.58237]
[1743037411320,1.88e-06,2024.6,2024.5,5.58237]
[1743037411618,0.98772,2024.7,2024.6,0.9877]
[1743037412220,0.98768,2024.8,2024.7,0.98765]
[1743037412416,2.31808,2024.8,2024.7,0.98765]
[1743037413022,2.34487,2025.0,2024.9,0.98758]
[1743037413218,3.67527,2025.0,2024.9,0.98758]
[1743037413526,0.98758,2024.9,2024.8,3.2078]
[1743037413823,2.31798,2024.9,2024.8,3.2078]
[1743037414419,3.2078,2025.4,2024.9,0.98758]
[1743037414624,7.05129,2025.7,2025.1,5.67641]
[1743037414827,0.98734,2025.5,2025.4,0.98731]
[1743037415127,0.98736,2025.4,2025.3,40.8]
[1743037415325,2.29416,2025.4,2025.3,41.78738]
[1743037415525,2.46774,2025.9,2025.3,44.308]
[1743037415823,0.98727,2025.6,2025.5,4.19509]
[1743037416028,0.98727,2025.6,2025.5,3.2078]
[1743037416328,1.67657,2025.6,2025.5,3.2078]
[1743037416925,0.6893,2025.6,2025.5,4.19509]
[1743037417127,0.98724,2025.6,2025.5,4.19509]
[1743037417527,0.98714,2025.9,2025.8,0.98712]
[1743037417733,1.3611,2026.1,2025.8,3.2078]
[1743037417923,0.02382404,2026.2,2025.9,2.32597]
[1743037418230,0.02382404,2026.2,2026.0,0.98702]
[1743037418423,0.98699,2026.1,2026.0,1.3389]
[1743037418731,2.34809,2026.1,2026.0,1.3389]
[1743037419525,0.98709,2025.9,2025.8,3.2078]
[1743037419721,0.98719,2025.7,2025.6,1.3389]
[1743037419925,0.98724,2025.6,2025.5,3.2078]
[1743037420228,2.29924,2025.6,2025.5,3.2078]
[1743037420627,0.98724,2025.6,2025.5,3.2078]
[1743037421033,0.98724,2025.6,2025.3,1.3359]
[1743037421034,0.98738,2025.3,2025.2,3.21520613]
[1743037421925,2.29938,2025.3,2025.2,3.21520613]
[1743037423621,0.98738,2025.3,2025.2,0.00740613]
[1743037424025,0.98738,2025.3,2025.2,3.21520613]
[1743037424233,0.98738,2025.3,2025.2,4.51870613]
[1743037426934,0.98738,2025.3,2025.2,5.50613613]
[1743037427440,0.98738,2025.3,2025.2,4.51870613]
[1743037428834,0.98738,2025.3,2025.2,5.50613613]
[1743037429636,0.98736,2025.4,2025.3,0.98736]
[1743037429835,1.3847,2025.5,2025.4,0.98734]
[1743037430035,2.4681,2025.6,2025.2,4.51870613]
[1743037430438,0.98738,2025.3,2025.2,4.51870613]
[1743037430636,0.98738,2025.3,2025.2,45.00263613]
[1743037431038,0.98738,2025.4,2025.3,0.98738]
[1743037431442,0.98738,2025.3,2025.2,44.01520613]
[1743037432644,0.98738,2025.3,2025.2,0.00740613]
[1743037433740,0.98738,2025.3,2025.2,4.20263613]
[1743037433939,0.98738,2025.3,2025.2,3.21520613]
[1743037435545,0.98738,2025.3,2025.2,4.20263613]
[1743037436051,0.98738,2025.3,2025.2,3.21520613]
[1743037436248,3.2078,2025.7,2025.3,2.46836]
[1743037436547,54.72736,2026.4,2025.9,0.98709]
[1743037436548,1.66509,2026.0,2025.9,0.98709]
[1743037436748,0.98709,2026.0,2025.9,0.98709]
[1743037437448,0.98709,2025.9,2025.8,3.8617]
[1743037438147,0.98709,2025.9,2025.8,3.2078]
[1743037438352,0.98728,2025.6,2025.5,4.19504]
[1743037438949,0.98728,2025.6,2025.5,3.2078]
[1743037441148,0.98728,2025.6,2025.2,1.67832613]
[1743037441149,0.98734,2025.4,2025.3,1.3261]
[1743037441649,0.98738,2025.3,2025.2,3.21520613]
[1743037441850,1.69398,2025.3,2025.2,3.21520613]
[1743037442155,0.98753,2025.0,2024.9,4.5339]
[1743037442357,0.98753,2025.0,2024.9,45.3339]
[1743037442547,0.98753,2025.0,2024.9,4.5339]
[1743037442748,0.98753,2025.0,2024.9,3.2078]
[1743037442952,2.29193,2025.0,2024.9,3.2078]
[1743037443954,2.29193,2025.0,2024.9,4.5339]
[1743037444755,0.98753,2025.0,2024.9,4.5339]
[1743037444954,0.98753,2025.0,2024.9,5.23]
[1743037445151,0.98753,2025.0,2024.9,6.21758]
[1743037445541,5.01664442,2025.2,2024.9,6.21758]
[1743037445746,0.00734442,2025.2,2025.1,0.98748]
[1743037446151,0.00734442,2025.2,2025.1,2.36648]
[1743037447358,0.99477442,2025.2,2025.1,2.36648]
[1743037448259,0.99477442,2025.2,2025.1,1.379]
[1743037452265,2.4679,2025.8,2025.2,2.46859]
[1743037452462,2.4679,2025.8,2025.5,3.2078]
[1743037452463,0.98724,2025.6,2025.5,3.2078]
[1743037452762,0.98724,2025.6,2025.5,4.19509]
[1743037452962,2.36414,2025.6,2025.5,4.19509]
[1743037453165,2.36414,2025.6,2025.5,3.2078]
[1743037453572,2.36414,2025.6,2025.5,4.5916]
[1743037453864,2.36414,2025.6,2025.5,5.57889]
[1743037454856,2.36414,2025.6,2025.5,4.5916]
[1743037455052,2.36414,2025.6,2025.5,5.57889]
[1743037455660,2.36414,2025.6,2025.5,4.5916]
[1743037456063,3.03514,2025.6,2025.5,4.5916]
[1743037456259,0.98738,2025.3,2025.2,3.2078]
[1743037456464,0.98753,2025.0,2024.9,11.93754]
[1743037456663,0.98753,2025.0,2024.9,6.6883]
[1743037456855,0.98753,2025.0,2024.9,5.988]
[1743037457367,0.98753,2025.0,2024.9,6.97558]
[1743037457563,0.98753,2025.0,2024.9,8.36258]
[1743037458566,0.98752,2025.1,2025.0,0.98748]
[1743037458867,0.98752,2025.1,2025.0,2.37448]
[1743037459168,0.98747,2025.2,2025.1,0.98743]
[1743037459363,1.69521,2025.3,2025.2,0.98743]
[1743037459661,0.98741,2025.3,2025.2,0.98743]
[1743037459859,0.98741,2025.3,2025.2,2.36163]
[1743037460557,0.98741,2025.3,2025.2,1.3742]
[1743037460759,0.98743,2025.2,2025.1,3.2078]
[1743037460960,0.98743,2025.2,2025.1,2.36168]
[1743037461267,2.40423,2025.2,2025.1,1.3742]
[1743037461768,0.98753,2025.0,2024.9,5.988]
[1743037462362,0.98753,2025.0,2024.9,6.97558]
[1743037463164,0.98753,2025.0,2024.9,8.33958]
[1743037463969,0.98763,2024.8,2024.7,0.00740613]
[1743037464263,0.98763,2024.8,2024.7,1.37140613]
[1743037464561,4.19543,2024.8,2024.7,0.00740613]
[1743037464762,0.98782,2024.4,2024.3,7.352]
[1743037464968,0.98782,2024.4,2024.3,1.364]
[1743037465167,0.98792,2024.2,2024.1,40.8]
[1743037465464,0.98792,2024.2,2024.1,42.164]
[1743037465964,2.36602,2024.2,2024.1,1.364]
[1743037466170,2.36602,2024.2,2023.9,0.71360613]
[1743037466171,0.98802,2024.0,2023.9,0.00740613]
[1743037466669,0.98802,2024.0,2023.9,40.80740613]
[1743037466870,0.98802,2024.0,2023.9,42.18150613]
[1743037467072,0.98802,2024.0,2023.9,1.38150613]
[1743037467465,0.98802,2024.0,2023.9,0.00740613]
[1743037468367,2.36612,2024.0,2023.9,0.00740613]
[1743037470469,1.3781,2024.0,2023.9,0.00740613]
[1743037470666,0.98802,2024.0,2023.9,0.99547613]
[1743037470974,0.98802,2024.0,2023.9,0.99545613]
[1743037471273,1.67307,2024.1,2024.0,0.98802]
[1743037471476,0.98797,2024.1,2024.0,2.35302]
[1743037471865,0.98797,2024.1,2024.0,1.365]
[1743037472171,0.98802,2024.0,2023.9,0.00740613]
[1743037472376,1.67252,2024.0,2023.9,0.00740613]
[1743037473273,3.01302,2024.0,2023.9,0.00740613]
[1743037475376,6.55902,2024.0,2023.9,0.00740613]
[1743037477771,0.98821,2023.6,2023.5,1.3916]
[1743037477970,0.98821,2023.6,2023.5,42.1916]
[1743037478177,0.98821,2023.6,2023.5,1.3916]
[1743037478581,0.98826,2023.5,2023.4,9.1958]
[1743037478771,0.98826,2023.5,2023.4,7.3796]
[1743037478973,0.98826,2023.5,2023.4,8.36791]
[1743037479483,0.98826,2023.5,2023.4,7.3796]
[1743037479878,0.98836,2023.3,2023.2,0.99578613]
[1743037480179,0.98836,2023.3,2023.2,1.39900613]
[1743037481383,2.42636,2023.3,2023.2,1.39900613]
[1743037482078,2.42636,2023.3,2023.2,0.00740613]
[1743037483377,0.98856,2022.9,2022.8,3.2078]
[1743037483581,0.9886,2022.8,2022.7,1.3384]
[1743037483776,3.0188,2022.8,2022.7,1.3384]
[1743037486977,0.98865,2022.7,2022.6,47.7767]
[1743037487180,2.39905,2022.7,2022.6,42.1859]
[1743037487487,2.39905,2022.7,2022.6,43.1746]
[1743037487686,2.39905,2022.7,2022.6,42.1859]
[1743037488189,2.39905,2022.7,2022.6,43.1746]
[1743037488885,2.39905,2022.7,2022.6,42.1859]
[1743037489281,2.39905,2022.7,2022.6,43.1746]
[1743037489489,0.98865,2022.7,2022.6,43.1746]
[1743037490282,3.10703,2022.8,2022.7,0.98865]
[1743037490481,0.9886,2022.8,2022.7,2.40613]
[1743037491489,2.3109,2022.8,2022.7,2.40615]
[1743037492687,2.3109,2022.8,2022.7,1.4175]
[1743037493485,2.3109,2022.8,2022.7,2.40615]
[1743037494384,2.3109,2022.8,2022.7,1.4175]
[1743037494686,2.3109,2022.8,2022.7,2.40615]
[1743037495489,2.3109,2022.8,2022.7,1.4175]
[1743037496189,2.3109,2022.8,2022.7,2.40615]
[1743037497282,0.9886,2022.8,2022.7,2.40615]
[1743037498391,0.98858,2022.9,2022.8,0.98856]
[1743037498690,1.65046613,2023.0,2022.9,0.98856]
[1743037499083,3.03646613,2023.0,2022.9,2.41076]
[1743037499278,3.03646613,2023.0,2022.9,1.4222]
[1743037500290,3.03646613,2023.0,2022.9,2.41076]
[1743037500491,3.03646613,2023.0,2022.9,1.4222]
[1743037500886,0.9886,2022.8,2022.7,0.98861]
[1743037501100,0.9886,2022.8,2022.7,2.41085]
[1743037507190,1.0,2966.0,2022.7,20.7222]
[1743037507191,2.47014,2024.0,2022.7,20.7222]
[1743037507390,0.98802,2024.1,2024.0,0.98798]
[1743037507593,0.98802,2024.1,2023.7,2.47042]
[1743037507890,0.98805,2024.0,2023.9,0.98802]
[1743037508296,1.4149,2024.2,2023.8,40.8]
[1743037508602,5.91924613,2024.2,2024.1,0.98797]
[1743037508901,0.00740613,2024.2,2024.1,0.98797]
[1743037509098,2.40262,2024.7,2024.2,2.46976]
[1743037509297,2.40262,2024.7,2024.6,0.98773]
[1743037509699,4.49967,2024.8,2024.7,0.98768]
[1743037510000,5.88987,2024.8,2024.7,0.98768]
[1743037510297,4.8992,2024.8,2024.7,0.98768]
[1743037510697,3.509,2024.8,2024.7,2.32688]
[1743037511601,4.49663,2024.8,2024.7,2.32688]
[1743037512799,0.98768,2024.7,2024.6,3.2078]
[1743037513003,2.46932,2024.6,2024.0,0.98799]
[1743037513304,0.98794,2024.2,2024.1,0.98796]
[1743037513604,0.98792,2024.2,2024.1,0.98796]
[1743037514396,0.98797,2024.1,2024.0,2.344]
[1743037514602,0.98797,2024.1,2024.0,1.356]
[1743037514803,4.48695,2024.2,2024.1,0.98797]
[1743037515002,5.18581,2024.5,2024.3,0.98785]
[1743037515199,1.3985,2024.4,2024.3,0.98785]
[1743037515499,1.3985,2024.4,2024.3,2.31335]
[1743037515692,4.198,2024.5,2024.3,2.31335]
[1743037515891,0.98782,2024.4,2024.2,4.19569]
[1743037516197,0.98787,2024.3,2024.2,3.2078]
[1743037516399,2.38636,2024.4,2024.2,4.1957]
[1743037516797,1.3985,2024.4,2024.3,0.98787]
[1743037517202,2.38634,2024.4,2024.2,4.19568]
[1743037517398,1.3985,2024.4,2024.3,0.98787]
[1743037517704,2.38636,2024.4,2024.2,4.19568]
[1743037518706,0.98787,2024.3,2024.2,4.19568]
[1743037518905,2.38635,2024.4,2024.3,0.98787]
[1743037519199,4.50596388,2024.5,2024.2,3.2078]
[1743037519406,0.98785,2024.4,2024.3,0.98786]
[1743037519605,0.98787,2024.3,2024.2,4.19568]
[1743037521494,2.5,2024.3,2023.7,0.00740613]
[1743037521705,0.98812,2023.8,2023.7,0.00740613]
[1743037522402,0.98812,2023.8,2023.7,0.99557613]
[1743037522708,1.302,2023.9,2023.8,0.98812]
[1743037523002,0.99546613,2024.0,2023.9,0.98807]
[1743037523205,0.99546613,2024.0,2023.9,4.19587]
[1743037523411,0.98791,2024.3,2024.2,0.98789]
[1743037523706,0.9879,2024.3,2024.2,0.98789]
[1743037525900,1.3021,2024.5,2024.2,3.2078]
[1743037526298,0.98784,2024.4,2024.3,0.98782]
[1743037527110,0.98787,2024.3,2024.2,4.19568]
[1743037527302,1.3341,2024.3,2024.2,4.19568]
[1743037527802,2.32197,2024.3,2024.2,4.19568]
[1743037528005,2.32197,2024.3,2023.9,2.47016]
[1743037528006,0.98792,2024.2,2024.1,0.98794]
[1743037528698,0.98798,2024.1,2024.0,0.98797]
[1743037529096,0.98798,2024.1,2024.0,41.78797]
[1743037529503,0.98798,2024.1,2024.0,0.98797]
[1743037530208,0.98795,2024.2,2024.1,0.98793]
[1743037530805,0.988,2024.1,2024.0,0.98798]
[1743037531207,0.988,2024.1,2024.0,2.40738]
[1743037531610,0.988,2024.1,2024.0,2.40742]
[1743037532112,0.988,2024.1,2024.0,1.4194]
[1743037532311,0.988,2024.1,2024.0,2.40742]
[1743037532611,0.988,2024.1,2024.0,1.4194]
[1743037533811,2.3951,2024.1,2024.0,2.40742]
[1743037534011,2.3951,2024.1,2024.0,1.4194]
[1743037534212,2.3951,2024.1,2024.0,2.40742]
[1743037537309,2.3951,2024.1,2024.0,1.4194]
[1743037539813,0.98795,2024.2,2024.1,0.98797]
[1743037541815,0.98797,2024.1,2024.0,2.40741]
[1743037542112,2.35917,2024.1,2024.0,2.40742]
[1743037542707,1.3712,2024.1,2024.0,2.40742]
[1743037542902,2.35917,2024.1,2024.0,2.40742]
[1743037543113,0.98797,2024.1,2024.0,2.40742]
[1743037543309,0.98797,2024.1,2024.0,2.40738]
[1743037543611,0.98797,2024.1,2024.0,2.40742]
[1743037543815,2.35917,2024.1,2024.0,2.40742]
[1743037544313,1.63917,2024.2,2024.1,0.98797]
[1743037544706,0.98797,2024.1,2024.0,2.40738]
[1743037545714,0.6512,2024.2,2023.8,40.8]
[1743037545914,0.98807,2023.9,2023.8,40.8]
[1743037546122,0.98812,2023.8,2023.7,0.99553613]
[1743037546607,0.98812,2023.8,2023.7,41.79553613]
[1743037547212,0.98812,2023.8,2023.7,43.20727613]